[Event "Early-Titled-Tuesday-Blitz-March-05-2024"]
[Site "Chess.com"]
[Date "2024.03.05"]
[Round "9"]
[White "stolencandy13"]
[Black "AlexeiShirov"]
[Result "0-1"]
[WhiteElo "2692"]
[BlackElo "2850"]
[TimeControl "180+1"]
[EndTime "9:48:33 PST"]
[Termination "AlexeiShirov won on time"]

1. d4 {[%clk 0:02:59.3]} 1... d5 {[%clk 0:02:59.8]} 2. Bf4 {[%clk 0:02:56.6]}
2... Nf6 {[%clk 0:02:59.1]} 3. e3 {[%clk 0:02:55.1]} 3... c5 {[%clk 0:02:58.9]}
4. c3 {[%clk 0:02:54.9]} 4... Qb6 {[%clk 0:02:52.3]} 5. Qb3 {[%clk 0:02:46.8]}
5... c4 {[%clk 0:02:50.4]} 6. Qxb6 {[%clk 0:02:43.7]} 6... axb6 {[%clk
0:02:49.8]} 7. Nd2 {[%clk 0:02:42.7]} 7... b5 {[%clk 0:02:47.5]} 8. a3 {[%clk
0:02:42.4]} 8... Nc6 {[%clk 0:02:44.9]} 9. Rc1 {[%clk 0:02:39.8]} 9... Nd7
{[%clk 0:02:41.7]} 10. Be2 {[%clk 0:02:36.5]} 10... Nb6 {[%clk 0:02:40.4]} 11.
Bd1 {[%clk 0:02:33.8]} 11... Na4 {[%clk 0:02:36.6]} 12. Bxa4 {[%clk 0:02:31.6]}
12... bxa4 {[%clk 0:02:36.4]} 13. e4 {[%clk 0:02:29.1]} 13... b5 {[%clk
0:02:32.6]} 14. exd5 {[%clk 0:02:18.8]} 14... Na5 {[%clk 0:02:32.3]} 15. Ngf3
{[%clk 0:01:59.8]} 15... Bb7 {[%clk 0:02:31.8]} 16. d6 {[%clk 0:01:59.3]} 16...
exd6 {[%clk 0:02:27.5]} 17. O-O {[%clk 0:01:57.1]} 17... Nb3 {[%clk 0:02:25.7]}
18. Nxb3 {[%clk 0:01:55.5]} 18... axb3 {[%clk 0:02:24.8]} 19. Rfe1+ {[%clk
0:01:53.5]} 19... Kd7 {[%clk 0:02:24.4]} 20. Re3 {[%clk 0:01:43.2]} 20... Bxf3
{[%clk 0:02:07]} 21. Rxf3 {[%clk 0:01:42.6]} 21... d5 {[%clk 0:02:05.9]} 22. Re1
{[%clk 0:01:37.7]} 22... f6 {[%clk 0:02:00]} 23. Rfe3 {[%clk 0:01:29.7]} 23...
g5 {[%clk 0:01:53.3]} 24. Bg3 {[%clk 0:01:28.5]} 24... h5 {[%clk 0:01:52.4]} 25.
h4 {[%clk 0:01:26.7]} 25... g4 {[%clk 0:01:47.3]} 26. Re6 {[%clk 0:01:08.2]}
26... Rh7 {[%clk 0:01:23.9]} 27. Rb6 {[%clk 0:01:06.8]} 27... Re7 {[%clk
0:01:21.2]} 28. Rb7+ {[%clk 0:01:00.4]} 28... Ke8 {[%clk 0:01:15.9]} 29. Rexe7+
{[%clk 0:00:58.7]} 29... Bxe7 {[%clk 0:01:15.6]} 30. Rxb5 {[%clk 0:00:57.7]}
30... Rd8 {[%clk 0:01:02.1]} 31. a4 {[%clk 0:00:51.6]} 31... Kf7 {[%clk
0:00:59.3]} 32. a5 {[%clk 0:00:46.6]} 32... Ke6 {[%clk 0:00:58.4]} 33. a6 {[%clk
0:00:43.8]} 33... Ra8 {[%clk 0:00:58]} 34. Rb6+ {[%clk 0:00:43.1]} 34... Kf5
{[%clk 0:00:57.7]} 35. Rb7 {[%clk 0:00:38.9]} 35... Ba3 {[%clk 0:00:35.4]} 36.
bxa3 {[%clk 0:00:35.6]} 36... Rxa6 {[%clk 0:00:35.5]} 37. f3 {[%clk 0:00:21.1]}
37... Rxa3 {[%clk 0:00:33.6]} 38. Rb5 {[%clk 0:00:19.3]} 38... gxf3 {[%clk
0:00:26.1]} 39. gxf3 {[%clk 0:00:19.3]} 39... Ra2 {[%clk 0:00:25.7]} 40. Bf2
{[%clk 0:00:16.5]} 40... Rc2 {[%clk 0:00:21.6]} 41. Kg2 {[%clk 0:00:14.8]} 41...
Rxc3 {[%clk 0:00:20.5]} 42. Rxd5+ {[%clk 0:00:14.6]} 42... Ke6 {[%clk
0:00:19.5]} 43. Rb5 {[%clk 0:00:14.4]} 43... Rc2 {[%clk 0:00:18.4]} 44. d5+
{[%clk 0:00:13]} 44... Kd6 {[%clk 0:00:17.9]} 45. Kf1 {[%clk 0:00:12.3]} 45...
b2 {[%clk 0:00:17.5]} 46. Bg3+ {[%clk 0:00:12]} 46... Kd7 {[%clk 0:00:17.7]} 47.
Be1 {[%clk 0:00:10.7]} 47... c3 {[%clk 0:00:16.5]} 48. Bxc3 {[%clk 0:00:08.4]}
48... Rxc3 {[%clk 0:00:16.6]} 49. Rxb2 {[%clk 0:00:08.3]} 49... Rxf3+ {[%clk
0:00:17.2]} 50. Ke2 {[%clk 0:00:08.3]} 50... Rf4 {[%clk 0:00:17.7]} 51. Rb6
{[%clk 0:00:07.2]} 51... Ke7 {[%clk 0:00:16.6]} 52. Ke3 {[%clk 0:00:06.5]} 52...
Rxh4 {[%clk 0:00:15.9]} 53. Re6+ {[%clk 0:00:06.9]} 53... Kf7 {[%clk 0:00:15.8]}
54. Ra6 {[%clk 0:00:07.8]} 54... Rh1 {[%clk 0:00:14.8]} 55. Kf3 {[%clk
0:00:08.1]} 55... Rd1 {[%clk 0:00:14.5]} 56. Ra5 {[%clk 0:00:07.3]} 56... Kg6
{[%clk 0:00:14.4]} 57. Kg3 {[%clk 0:00:07.6]} 57... Kg5 {[%clk 0:00:14.4]} 58.
d6+ {[%clk 0:00:07.4]} 58... f5 {[%clk 0:00:14.5]} 59. Ra6 {[%clk 0:00:07.2]}
59... Rd3+ {[%clk 0:00:14.6]} 60. Kf2 {[%clk 0:00:07.3]} 60... h4 {[%clk
0:00:14.7]} 61. Ke2 {[%clk 0:00:06.1]} 61... Rd5 {[%clk 0:00:14.9]} 62. Ke3
{[%clk 0:00:06.5]} 62... Kg4 {[%clk 0:00:14.8]} 63. Ra8 {[%clk 0:00:05]} 63...
f4+ {[%clk 0:00:13.9]} 64. Ke4 {[%clk 0:00:04.3]} 64... Rxd6 {[%clk 0:00:13.5]}
65. Rg8+ {[%clk 0:00:04.8]} 65... Kh3 {[%clk 0:00:13.6]} 66. Kxf4 {[%clk
0:00:05.3]} 66... Kh2 {[%clk 0:00:13.6]} 67. Rh8 {[%clk 0:00:04.3]} 67... h3
{[%clk 0:00:13.8]} 68. Kf3 {[%clk 0:00:04.7]} 68... Rf6+ {[%clk 0:00:13.8]} 69.
Ke2 {[%clk 0:00:05.1]} 69... Rf4 {[%clk 0:00:12.3]} 70. Ke3 {[%clk 0:00:04.9]}
70... Rf7 {[%clk 0:00:11.7]} 71. Ke2 {[%clk 0:00:05.4]} 71... Kg3 {[%clk
0:00:10.7]} 72. Rg8+ {[%clk 0:00:05.4]} 72... Kh2 {[%clk 0:00:10.5]} 73. Rh8
{[%clk 0:00:05.8]} 73... Kg2 {[%clk 0:00:10.4]} 74. Rg8+ {[%clk 0:00:06.2]}
74... Kh1 {[%clk 0:00:10.5]} 75. Rh8 {[%clk 0:00:06.7]} 75... h2 {[%clk
0:00:10.6]} 76. Rh6 {[%clk 0:00:06.9]} 76... Rg7 {[%clk 0:00:09.5]} 77. Kf2
{[%clk 0:00:06.7]} 77... Rf7+ {[%clk 0:00:09.1]} 78. Ke2 {[%clk 0:00:06.4]}
78... Kg2 {[%clk 0:00:07.7]} 79. Rg6+ {[%clk 0:00:06.4]} 79... Kh3 {[%clk
0:00:07.9]} 80. Rh6+ {[%clk 0:00:06.4]} 80... Kg3 {[%clk 0:00:08.2]} 81. Rg6+
{[%clk 0:00:06.9]} 81... Kf4 {[%clk 0:00:08.2]} 82. Rh6 {[%clk 0:00:05.8]} 82...
Ra7 {[%clk 0:00:08.7]} 83. Kf2 {[%clk 0:00:01.5]} 83... Ra2+ {[%clk 0:00:08.5]}
84. Kf1 {[%clk 0:00:02]} 84... Kf3 {[%clk 0:00:07.8]} 85. Rf6+ {[%clk
0:00:01.7]} 85... Kg4 {[%clk 0:00:07.5]} 86. Rg6+ {[%clk 0:00:02.2]} 86... Kh5
{[%clk 0:00:07.2]} 0-1

[Event "Early-Titled-Tuesday-Blitz-March-05-2024"]
[Site "Chess.com"]
[Date "2024.03.05"]
[Round "9"]
[White "xakevicius91"]
[Black "Msb2"]
[Result "1/2-1/2"]
[WhiteElo "2582"]
[BlackElo "2986"]
[TimeControl "180+1"]
[EndTime "9:48:44 PST"]
[Termination "Game drawn by 50-move rule"]

1. e4 {[%clk 0:03:00.9]} 1... e6 {[%clk 0:02:59.9]} 2. d4 {[%clk 0:03:00.8]}
2... d5 {[%clk 0:03:00.8]} 3. Nd2 {[%clk 0:03:01]} 3... c5 {[%clk 0:02:59]} 4.
exd5 {[%clk 0:03:00.3]} 4... Qxd5 {[%clk 0:02:59.9]} 5. Ngf3 {[%clk 0:03:00.3]}
5... cxd4 {[%clk 0:03:00.8]} 6. Bc4 {[%clk 0:03:00.7]} 6... Qd6 {[%clk
0:03:01.3]} 7. O-O {[%clk 0:03:00.4]} 7... Nf6 {[%clk 0:03:01.9]} 8. Nb3 {[%clk
0:03:00.5]} 8... Nc6 {[%clk 0:03:02.7]} 9. Nbxd4 {[%clk 0:03:00.3]} 9... Nxd4
{[%clk 0:03:03.6]} 10. Nxd4 {[%clk 0:03:00.9]} 10... Be7 {[%clk 0:03:03.6]} 11.
c3 {[%clk 0:02:58.2]} 11... O-O {[%clk 0:03:04.2]} 12. Qf3 {[%clk 0:02:58]}
12... e5 {[%clk 0:03:04.5]} 13. Nf5 {[%clk 0:02:51.1]} 13... Bxf5 {[%clk
0:03:05]} 14. Qxf5 {[%clk 0:02:52]} 14... Qc7 {[%clk 0:03:05.7]} 15. Bb3 {[%clk
0:02:49.9]} 15... a5 {[%clk 0:03:03.7]} 16. a4 {[%clk 0:02:48.9]} 16... g6
{[%clk 0:03:00.4]} 17. Qf3 {[%clk 0:02:44.5]} 17... Kg7 {[%clk 0:02:56.8]} 18.
Bg5 {[%clk 0:02:43.2]} 18... Nh5 {[%clk 0:02:56]} 19. Bxe7 {[%clk 0:02:38.8]}
19... Qxe7 {[%clk 0:02:56.9]} 20. Rfe1 {[%clk 0:02:38.1]} 20... Rad8 {[%clk
0:02:55.8]} 21. Rad1 {[%clk 0:02:35.8]} 21... f5 {[%clk 0:02:48]} 22. g3 {[%clk
0:02:32.8]} 22... Nf6 {[%clk 0:02:42.9]} 23. Qe3 {[%clk 0:02:30.4]} 23... Ne4
{[%clk 0:02:30.8]} 24. Bc2 {[%clk 0:02:02.5]} 24... Rxd1 {[%clk 0:02:27.6]} 25.
Rxd1 {[%clk 0:02:01.8]} 25... Nc5 {[%clk 0:02:25.7]} 26. Rd5 {[%clk 0:02:00.1]}
26... Nd7 {[%clk 0:02:18.1]} 27. Rxa5 {[%clk 0:01:41.9]} 27... e4 {[%clk
0:02:17]} 28. Rd5 {[%clk 0:01:36.4]} 28... Nf6 {[%clk 0:02:16.7]} 29. Qd4 {[%clk
0:01:32.8]} 29... Kh6 {[%clk 0:02:13.3]} 30. Rd6 {[%clk 0:01:29.8]} 30... Ng4
{[%clk 0:01:52]} 31. Rd7 {[%clk 0:01:23.2]} 31... Qe5 {[%clk 0:01:48.2]} 32. h3
{[%clk 0:01:10.9]} 32... Qxd4 {[%clk 0:01:46]} 33. cxd4 {[%clk 0:01:09.7]} 33...
Nf6 {[%clk 0:01:46.5]} 34. Rxb7 {[%clk 0:01:09.8]} 34... Rd8 {[%clk 0:01:47.1]}
35. Rb4 {[%clk 0:01:06.3]} 35... Nd5 {[%clk 0:01:44.2]} 36. Rb5 {[%clk
0:00:54.8]} 36... e3 {[%clk 0:01:41.7]} 37. fxe3 {[%clk 0:00:50.9]} 37... Nxe3
{[%clk 0:01:42.6]} 38. Rc5 {[%clk 0:00:39.2]} 38... Rxd4 {[%clk 0:01:42.2]} 39.
a5 {[%clk 0:00:39.6]} 39... Rd2 {[%clk 0:01:38.3]} 40. a6 {[%clk 0:00:38.2]}
40... Nxc2 {[%clk 0:01:33.5]} 41. a7 {[%clk 0:00:36.5]} 41... Rd1+ {[%clk
0:01:34.1]} 42. Kf2 {[%clk 0:00:32.5]} 42... Ra1 {[%clk 0:01:35]} 43. Rxc2
{[%clk 0:00:30]} 43... Rxa7 {[%clk 0:01:35.7]} 44. b4 {[%clk 0:00:28.4]} 44...
Rb7 {[%clk 0:01:27.3]} 45. Rb2 {[%clk 0:00:28.5]} 45... Rb5 {[%clk 0:01:20]} 46.
Kf3 {[%clk 0:00:28.7]} 46... g5 {[%clk 0:01:20.6]} 47. g4 {[%clk 0:00:28.3]}
47... f4 {[%clk 0:01:14.5]} 48. h4 {[%clk 0:00:28.1]} 48... gxh4 {[%clk
0:01:05.1]} 49. Kxf4 {[%clk 0:00:28.3]} 49... Kg6 {[%clk 0:01:05.9]} 50. Rb3
{[%clk 0:00:22.3]} 50... h6 {[%clk 0:01:05.8]} 51. Rb2 {[%clk 0:00:22.2]} 51...
Kf6 {[%clk 0:01:03.7]} 52. Rb3 {[%clk 0:00:20.4]} 52... Ke6 {[%clk 0:01:04.2]}
53. Rb2 {[%clk 0:00:19.8]} 53... Ke7 {[%clk 0:01:01.1]} 54. Re2+ {[%clk
0:00:18.4]} 54... Kf7 {[%clk 0:00:56.6]} 55. Rb2 {[%clk 0:00:18.2]} 55... Kf6
{[%clk 0:00:56.9]} 56. Rb3 {[%clk 0:00:18.3]} 56... Ke6 {[%clk 0:00:57]} 57. Rb2
{[%clk 0:00:18.5]} 57... Ke7 {[%clk 0:00:50.8]} 58. Rb3 {[%clk 0:00:18.7]} 58...
Kd6 {[%clk 0:00:49.5]} 59. Rb2 {[%clk 0:00:17.8]} 59... Kd5 {[%clk 0:00:44.3]}
60. g5 {[%clk 0:00:17.6]} 60... hxg5+ {[%clk 0:00:38.8]} 61. Kxg5 {[%clk
0:00:18.5]} 61... h3 {[%clk 0:00:39.7]} 62. Kg4 {[%clk 0:00:17.1]} 62... h2
{[%clk 0:00:37.3]} 63. Rxh2 {[%clk 0:00:15.1]} 63... Rxb4+ {[%clk 0:00:38]} 64.
Kg5 {[%clk 0:00:14.7]} 64... Rb8 {[%clk 0:00:37.2]} 65. Rd2+ {[%clk 0:00:14.8]}
65... Ke4 {[%clk 0:00:37.8]} 66. Re2+ {[%clk 0:00:15.2]} 66... Kf3 {[%clk
0:00:38.2]} 67. Re7 {[%clk 0:00:15]} 67... Rb5+ {[%clk 0:00:38.5]} 68. Kf6
{[%clk 0:00:15.1]} 68... Kf4 {[%clk 0:00:39.2]} 69. Re6 {[%clk 0:00:15.4]} 69...
Ra5 {[%clk 0:00:39.2]} 70. Rb6 {[%clk 0:00:15.3]} 70... Rh5 {[%clk 0:00:39.3]}
71. Rb4+ {[%clk 0:00:15.5]} 71... Ke3 {[%clk 0:00:39.4]} 72. Rb3+ {[%clk
0:00:15.9]} 72... Kd4 {[%clk 0:00:39.5]} 73. Rb4+ {[%clk 0:00:15.8]} 73... Kc5
{[%clk 0:00:39.2]} 74. Rb1 {[%clk 0:00:15.1]} 74... Rh2 {[%clk 0:00:39.4]} 75.
Rc1+ {[%clk 0:00:15]} 75... Kd5 {[%clk 0:00:40]} 76. Rd1+ {[%clk 0:00:15.5]}
76... Ke4 {[%clk 0:00:40.7]} 77. Re1+ {[%clk 0:00:16]} 77... Kd3 {[%clk
0:00:40.7]} 78. Rd1+ {[%clk 0:00:16.1]} 78... Kc2 {[%clk 0:00:41.4]} 79. Rd8
{[%clk 0:00:15.9]} 79... Re2 {[%clk 0:00:40.2]} 80. Rc8+ {[%clk 0:00:15.4]}
80... Kd1 {[%clk 0:00:40.7]} 81. Rd8+ {[%clk 0:00:15.7]} 81... Ke1 {[%clk
0:00:41.3]} 82. Rd7 {[%clk 0:00:16]} 82... Kf2 {[%clk 0:00:41.7]} 83. Re7 {[%clk
0:00:15.8]} 83... Ra2 {[%clk 0:00:42.3]} 84. Re5 {[%clk 0:00:15.5]} 84... Kf3
{[%clk 0:00:42.5]} 85. Rb5 {[%clk 0:00:15.3]} 85... Ra3 {[%clk 0:00:40.6]} 86.
Kf5 {[%clk 0:00:14]} 86... Rc3 {[%clk 0:00:41]} 87. Ke5 {[%clk 0:00:13.1]} 87...
Kg4 {[%clk 0:00:39.8]} 88. Ke4 {[%clk 0:00:12.4]} 88... Rc8 {[%clk 0:00:39.9]}
89. Rb1 {[%clk 0:00:11.1]} 89... Re8+ {[%clk 0:00:39.9]} 90. Kd5 {[%clk
0:00:11.2]} 90... Kf3 {[%clk 0:00:40.2]} 91. Rf1+ {[%clk 0:00:10.5]} 91... Ke2
{[%clk 0:00:40.8]} 92. Rf6 {[%clk 0:00:10.3]} 92... Rg8 {[%clk 0:00:39.9]} 93.
Re6+ {[%clk 0:00:10.1]} 93... Kd3 {[%clk 0:00:40.2]} 94. Re1 {[%clk 0:00:10.2]}
94... Rg6 {[%clk 0:00:37.3]} 95. Rh1 {[%clk 0:00:09.5]} 95... Rg5+ {[%clk
0:00:37.2]} 96. Ke6 {[%clk 0:00:09.6]} 96... Kd4 {[%clk 0:00:37.7]} 97. Rh4+
{[%clk 0:00:09.3]} 97... Kc5 {[%clk 0:00:38.3]} 98. Rh3 {[%clk 0:00:08.6]} 98...
Rg1 {[%clk 0:00:37.6]} 99. Rh2 {[%clk 0:00:08.9]} 99... Re1+ {[%clk 0:00:37.3]}
100. Kf5 {[%clk 0:00:08.9]} 100... Kd5 {[%clk 0:00:37.8]} 101. Rd2+ {[%clk
0:00:09.2]} 101... Kc4 {[%clk 0:00:38.4]} 102. Rc2+ {[%clk 0:00:09.9]} 102...
Kd3 {[%clk 0:00:38.9]} 103. Rc8 {[%clk 0:00:10.1]} 103... Re7 {[%clk 0:00:38.8]}
104. Kf4 {[%clk 0:00:09.9]} 104... Re6 {[%clk 0:00:37.5]} 105. Kf5 {[%clk
0:00:09.3]} 105... Re1 {[%clk 0:00:37.7]} 106. Rd8+ {[%clk 0:00:09.2]} 106...
Kc4 {[%clk 0:00:38.3]} 107. Rc8+ {[%clk 0:00:09.8]} 107... Kb5 {[%clk
0:00:38.7]} 108. Rb8+ {[%clk 0:00:10.1]} 108... Kc6 {[%clk 0:00:39.4]} 109. Rc8+
{[%clk 0:00:10.6]} 109... Kd7 {[%clk 0:00:40.1]} 110. Rc2 {[%clk 0:00:10.8]}
110... Re3 {[%clk 0:00:40.2]} 111. Kf4 {[%clk 0:00:11.1]} 111... Rb3 {[%clk
0:00:40.3]} 112. Rd2+ {[%clk 0:00:11]} 112... Ke6 {[%clk 0:00:40.8]} 113. Re2+
{[%clk 0:00:11.4]} 113... Kf6 {[%clk 0:00:41.4]} 1/2-1/2

[Event "Early-Titled-Tuesday-Blitz-March-05-2024"]
[Site "Chess.com"]
[Date "2024.03.05"]
[Round "9"]
[White "abc_xyz4744"]
[Black "ZuraTqebuchava"]
[Result "1/2-1/2"]
[WhiteElo "2406"]
[BlackElo "2266"]
[TimeControl "180+1"]
[EndTime "9:48:55 PST"]
[Termination "Game drawn by repetition"]

1. e4 {[%clk 0:02:59.8]} 1... g6 {[%clk 0:02:59.5]} 2. d4 {[%clk 0:02:59.8]}
2... Bg7 {[%clk 0:03:00]} 3. Nf3 {[%clk 0:02:58.7]} 3... c6 {[%clk 0:03:00.4]}
4. c4 {[%clk 0:02:54.9]} 4... d5 {[%clk 0:03:00.3]} 5. exd5 {[%clk 0:02:55.3]}
5... cxd5 {[%clk 0:03:01.2]} 6. Nc3 {[%clk 0:02:55.9]} 6... Nf6 {[%clk
0:02:57.8]} 7. Bg5 {[%clk 0:02:52.9]} 7... dxc4 {[%clk 0:02:53.7]} 8. Bxc4
{[%clk 0:02:53.8]} 8... O-O {[%clk 0:02:52]} 9. O-O {[%clk 0:02:53.6]} 9... Bg4
{[%clk 0:02:51.6]} 10. h3 {[%clk 0:02:51.2]} 10... Bxf3 {[%clk 0:02:50.6]} 11.
Qxf3 {[%clk 0:02:52.1]} 11... Nc6 {[%clk 0:02:50.8]} 12. Rad1 {[%clk 0:02:46.6]}
12... Qb6 {[%clk 0:02:43.1]} 13. Bxf6 {[%clk 0:01:52.6]} 13... exf6 {[%clk
0:02:41.2]} 14. Nd5 {[%clk 0:01:31.7]} 14... Qxb2 {[%clk 0:02:31.6]} 15. Nxf6+
{[%clk 0:01:24.5]} 15... Kh8 {[%clk 0:02:28.3]} 16. Nd7 {[%clk 0:01:13.4]} 16...
Nxd4 {[%clk 0:02:15.8]} 17. Qd5 {[%clk 0:00:58.9]} 17... Rad8 {[%clk 0:01:59.4]}
18. Rb1 {[%clk 0:00:51.6]} 18... Qd2 {[%clk 0:01:47.8]} 19. Rfd1 {[%clk
0:00:18.1]} 19... Ne2+ {[%clk 0:00:48.1]} 20. Bxe2 {[%clk 0:00:11.9]} 20... Qxe2
{[%clk 0:00:47.8]} 21. Qxb7 {[%clk 0:00:11.8]} 21... Rfe8 {[%clk 0:00:35.9]} 22.
Rf1 {[%clk 0:00:11.6]} 22... Re7 {[%clk 0:00:29.8]} 23. Rbd1 {[%clk 0:00:07.2]}
23... Qe6 {[%clk 0:00:26.6]} 24. Qc7 {[%clk 0:00:07.5]} 24... Rexd7 {[%clk
0:00:24.7]} 25. Qxd8+ {[%clk 0:00:08]} 25... Rxd8 {[%clk 0:00:24]} 26. Rxd8+
{[%clk 0:00:08.9]} 26... Bf8 {[%clk 0:00:24.6]} 27. Rxf8+ {[%clk 0:00:09.3]}
27... Kg7 {[%clk 0:00:25.5]} 28. Ra8 {[%clk 0:00:08.7]} 28... Qxa2 {[%clk
0:00:24.3]} 29. Re1 {[%clk 0:00:09.2]} 29... a5 {[%clk 0:00:13.7]} 30. Re7
{[%clk 0:00:07.5]} 30... a4 {[%clk 0:00:09.1]} 31. Rea7 {[%clk 0:00:07.1]} 31...
Qb1+ {[%clk 0:00:08.9]} 32. Kh2 {[%clk 0:00:06.9]} 32... Qc2 {[%clk 0:00:08.2]}
33. f3 {[%clk 0:00:06.8]} 33... Qc5 {[%clk 0:00:05.2]} 34. Rxa4 {[%clk
0:00:06.9]} 34... Qc7+ {[%clk 0:00:05.4]} 35. f4 {[%clk 0:00:06.2]} 35... Qd6
{[%clk 0:00:05.1]} 36. R8a7 {[%clk 0:00:06.4]} 36... h5 {[%clk 0:00:04]} 37. Rc4
{[%clk 0:00:06.3]} 37... Qb8 {[%clk 0:00:03.7]} 38. Rcc7 {[%clk 0:00:03.9]}
38... g5 {[%clk 0:00:02.7]} 39. Rxf7+ {[%clk 0:00:03.8]} 39... Kg6 {[%clk
0:00:02.3]} 40. Rg7+ {[%clk 0:00:04.1]} 40... Kf6 {[%clk 0:00:01.9]} 41. Raf7+
{[%clk 0:00:04.7]} 41... Ke6 {[%clk 0:00:02]} 42. Re7+ {[%clk 0:00:05.1]} 42...
Kf6 {[%clk 0:00:02]} 43. Ref7+ {[%clk 0:00:05.4]} 43... Ke6 {[%clk 0:00:02.5]}
44. g3 {[%clk 0:00:03.4]} 44... gxf4 {[%clk 0:00:02.4]} 45. Rxf4 {[%clk
0:00:02.9]} 45... Qb2+ {[%clk 0:00:02.9]} 46. Kg1 {[%clk 0:00:03.1]} 46... Qc1+
{[%clk 0:00:03.4]} 47. Kg2 {[%clk 0:00:03.2]} 47... Qb2+ {[%clk 0:00:03.9]} 48.
Rf2 {[%clk 0:00:03.2]} 48... Qxg7 {[%clk 0:00:04.8]} 49. Re2+ {[%clk 0:00:03.6]}
49... Kd7 {[%clk 0:00:04.9]} 50. Rf2 {[%clk 0:00:04]} 50... Kc6 {[%clk
0:00:05.5]} 51. Re2 {[%clk 0:00:04.4]} 51... Qb7 {[%clk 0:00:05.8]} 52. Rf2
{[%clk 0:00:04.7]} 52... Kd7+ {[%clk 0:00:05.8]} 53. Kh2 {[%clk 0:00:05.2]}
53... Qb6 {[%clk 0:00:05.5]} 54. Kg2 {[%clk 0:00:05.1]} 54... Qc6+ {[%clk
0:00:05.1]} 55. Kh2 {[%clk 0:00:05.2]} 55... Qc5 {[%clk 0:00:05.5]} 56. Kg2
{[%clk 0:00:05.4]} 56... Qd5+ {[%clk 0:00:05.4]} 57. Kh2 {[%clk 0:00:05.6]}
57... Qd4 {[%clk 0:00:05.7]} 58. Kg2 {[%clk 0:00:06.1]} 58... Qc4 {[%clk
0:00:05.5]} 59. Rf4 {[%clk 0:00:06.1]} 59... Qc2+ {[%clk 0:00:05.4]} 60. Rf2
{[%clk 0:00:06.4]} 60... Qc5 {[%clk 0:00:05.3]} 61. Rf7+ {[%clk 0:00:05.6]}
61... Ke6 {[%clk 0:00:05.2]} 62. Rf2 {[%clk 0:00:05.6]} 62... Qd5+ {[%clk
0:00:05.2]} 63. Kh2 {[%clk 0:00:05.6]} 63... Qd6 {[%clk 0:00:05.7]} 64. Kg2
{[%clk 0:00:05.5]} 64... Qc6+ {[%clk 0:00:05.4]} 65. Kh2 {[%clk 0:00:05.5]}
65... Qd6 {[%clk 0:00:05.5]} 66. Kg2 {[%clk 0:00:05.9]} 66... Qd4 {[%clk
0:00:05.8]} 67. Rf4 {[%clk 0:00:05.8]} 67... Qd2+ {[%clk 0:00:05.8]} 68. Rf2
{[%clk 0:00:06.1]} 68... Qd6 {[%clk 0:00:05.8]} 69. Re2+ {[%clk 0:00:05.4]}
69... Kf5 {[%clk 0:00:05.6]} 70. Rf2+ {[%clk 0:00:05.9]} 70... Kg6 {[%clk
0:00:05.3]} 71. Re2 {[%clk 0:00:05.4]} 71... Qd5+ {[%clk 0:00:05.3]} 72. Kh2
{[%clk 0:00:05.3]} 72... Qd3 {[%clk 0:00:05.5]} 73. Rf2 {[%clk 0:00:05.3]} 73...
Qe3 {[%clk 0:00:05.5]} 74. Kg2 {[%clk 0:00:05.6]} 74... Qe4+ {[%clk 0:00:05.6]}
75. Kh2 {[%clk 0:00:05.6]} 75... Qe5 {[%clk 0:00:05.9]} 76. Kg2 {[%clk
0:00:05.9]} 76... Qd5+ {[%clk 0:00:05.8]} 77. Kh2 {[%clk 0:00:06.2]} 77... Qd6
{[%clk 0:00:05.7]} 78. Kg2 {[%clk 0:00:06.8]} 78... Qd5+ {[%clk 0:00:06]} 79.
Kh2 {[%clk 0:00:07.2]} 79... Qd4 {[%clk 0:00:06.1]} 80. Kg2 {[%clk 0:00:07.6]}
80... Qc5 {[%clk 0:00:06.7]} 81. Re2 {[%clk 0:00:07.2]} 81... Qd4 {[%clk
0:00:06.1]} 82. Rf2 {[%clk 0:00:07.2]} 82... Qc5 {[%clk 0:00:06.1]} 83. Re2
{[%clk 0:00:07]} 83... Qd5+ {[%clk 0:00:05.8]} 84. Kh2 {[%clk 0:00:06.9]} 84...
Qd4 {[%clk 0:00:06.2]} 85. Kg2 {[%clk 0:00:06.9]} 85... Qd3 {[%clk 0:00:06.1]}
86. Rf2 {[%clk 0:00:07]} 86... Qd5+ {[%clk 0:00:06]} 1/2-1/2

[Event "Early-Titled-Tuesday-Blitz-March-05-2024"]
[Site "Chess.com"]
[Date "2024.03.05"]
[Round "10"]
[White "ChristianArca"]
[Black "guillembaches"]
[Result "0-1"]
[WhiteElo "2677"]
[BlackElo "2536"]
[TimeControl "180+1"]
[EndTime "9:53:17 PST"]
[Termination "guillembaches won by resignation"]

1. e4 {[%clk 0:02:55.2]} 1... d5 {[%clk 0:03:00.3]} 2. exd5 {[%clk 0:02:49.8]}
2... Qxd5 {[%clk 0:03:01.2]} 3. Nc3 {[%clk 0:02:48.7]} 3... Qa5 {[%clk
0:03:00.4]} 4. Nf3 {[%clk 0:02:45.8]} 4... Nf6 {[%clk 0:02:59.9]} 5. Bc4 {[%clk
0:02:45.6]} 5... Bg4 {[%clk 0:02:49.9]} 6. d4 {[%clk 0:02:42.2]} 6... Nc6 {[%clk
0:02:41.7]} 7. h3 {[%clk 0:02:33]} 7... Bh5 {[%clk 0:02:23.7]} 8. d5 {[%clk
0:02:26.5]} 8... O-O-O {[%clk 0:02:13.4]} 9. Qe2 {[%clk 0:02:27.1]} 9... Nd4
{[%clk 0:02:06.2]} 10. Nxd4 {[%clk 0:02:10.9]} 10... Bxe2 {[%clk 0:02:03.3]} 11.
Nxe2 {[%clk 0:02:10]} 11... Nxd5 {[%clk 0:01:57.2]} 12. O-O {[%clk 0:02:10.3]}
12... Nxc3 {[%clk 0:01:52.2]} 13. Nxc3 {[%clk 0:02:08.2]} 13... e6 {[%clk
0:01:50.2]} 14. Bg5 {[%clk 0:02:05.2]} 0-1

[Event "Early-Titled-Tuesday-Blitz-March-05-2024"]
[Site "Chess.com"]
[Date "2024.03.05"]
[Round "10"]
[White "Chessbard1972"]
[Black "enriquebutti"]
[Result "1-0"]
[WhiteElo "2465"]
[BlackElo "2218"]
[TimeControl "180+1"]
[EndTime "9:53:23 PST"]
[Termination "Chessbard1972 won by resignation"]

1. d4 {[%clk 0:02:47.5]} 1... c5 {[%clk 0:02:58.4]} 2. d5 {[%clk 0:02:47.4]}
2... e5 {[%clk 0:02:58]} 3. c4 {[%clk 0:02:46.9]} 3... d6 {[%clk 0:02:57.9]} 4.
Nc3 {[%clk 0:02:46.7]} 4... Be7 {[%clk 0:02:57.6]} 5. b3 {[%clk 0:02:46.4]} 5...
f5 {[%clk 0:02:56]} 6. e4 {[%clk 0:02:45.6]} 6... Nf6 {[%clk 0:02:55.7]} 7. exf5
{[%clk 0:02:44.2]} 7... Bxf5 {[%clk 0:02:55]} 8. Nge2 {[%clk 0:02:42.3]} 8...
O-O {[%clk 0:02:41.8]} 9. Ng3 {[%clk 0:02:41.9]} 9... g6 {[%clk 0:02:41.4]} 10.
Bd3 {[%clk 0:02:39.8]} 10... Bxd3 {[%clk 0:02:30.7]} 11. Qxd3 {[%clk 0:02:39.6]}
11... Na6 {[%clk 0:02:26.3]} 12. a3 {[%clk 0:02:38.2]} 12... Nc7 {[%clk
0:02:25.6]} 13. O-O {[%clk 0:02:35.6]} 13... a6 {[%clk 0:02:22.4]} 14. a4 {[%clk
0:02:34.9]} 14... b6 {[%clk 0:02:21.2]} 15. Bh6 {[%clk 0:02:33.1]} 15... Rf7
{[%clk 0:02:20.2]} 16. f3 {[%clk 0:02:31.7]} 16... Rb8 {[%clk 0:02:19.4]} 17.
Nce4 {[%clk 0:02:24.6]} 17... Nxe4 {[%clk 0:02:17.6]} 18. fxe4 {[%clk
0:02:16.7]} 18... Rxf1+ {[%clk 0:02:16]} 19. Rxf1 {[%clk 0:02:15.9]} 19... Qd7
{[%clk 0:02:09.6]} 20. Qf3 {[%clk 0:02:13.9]} 20... Re8 {[%clk 0:02:00.6]} 21.
Qf7+ {[%clk 0:02:12.6]} 1-0